fUST/lending_fUST_20260529
["ID","MTS","AMOUNT","RATE_DAILY","PERIOD"]
[423294056,1780038643000,-500.0,8.555e-05,2]
[423294054,1780038643000,-500.0,8.555e-05,2]
[423294055,1780038643000,-500.0,8.555e-05,2]
[423294061,1780038643000,-585.97660249,8.555e-05,2]
[423294045,1780038643000,-500.0,8.554e-05,2]
[423294050,1780038643000,-502.59340017,8.554e-05,2]
[423294052,1780038643000,-347.93,8.555e-05,2]
[423294047,1780038643000,-500.0,8.554e-05,2]
[423294051,1780038643000,-500.0,8.554e-05,2]
[423294048,1780038643000,-165.32989495,8.554e-05,2]
[423294049,1780038643000,-500.0,8.554e-05,2]
[423294046,1780038643000,-500.0,8.554e-05,2]
[423294053,1780038643000,-500.0,8.555e-05,2]
[423294063,1780038646000,-500.0,8.555e-05,2]
[423294066,1780038646000,-79644.94083021,8.555e-05,2]
[423294065,1780038646000,-3732.81397816,8.555e-05,2]
[423294064,1780038646000,-12770.57507934,8.555e-05,2]
[423294970,1780039197000,451.0,0.00020238,120]
[423294996,1780039705000,-154.5125638,6.605e-05,2]
[423295008,1780039832000,-300.0,6.604e-05,2]
[423295013,1780039832000,-220.84496051,6.604e-05,2]
[423295009,1780039832000,-1156.72154225,6.604e-05,2]
[423295020,1780039832000,-305.668248,6.605e-05,2]
[423295015,1780039832000,-348.0334435,6.605e-05,2]
[423295011,1780039832000,-43.27845775,6.604e-05,2]
[423295017,1780039832000,-7548.01811341,6.605e-05,2]
[423295026,1780039832000,-6578.82446111,6.605e-05,2]
[423295028,1780039832000,-397.91517571,6.605e-05,2]
[423295082,1780039838000,-2435.8690669,6.667e-05,2]
[423295086,1780039838000,-300.0,6.736e-05,2]
[423295088,1780039838000,-300.0,6.736e-05,2]
[423295084,1780039838000,-300.0,6.736e-05,2]
[423295091,1780039838000,-300.0,6.736e-05,2]
[423295093,1780039838000,-300.0,6.736e-05,2]
[423295089,1780039838000,-300.0,6.736e-05,2]
[423295080,1780039838000,-17603.95632227,6.605e-05,2]
[423295169,1780039839000,-550.0,8.218e-05,2]
[423295144,1780039839000,-515.06776612,8.218e-05,2]
[423295140,1780039839000,-500.0,8.218e-05,2]
[423295152,1780039839000,-500.0,8.218e-05,2]
[423295142,1780039839000,-500.0,8.218e-05,2]
[423295146,1780039839000,-500.0,8.218e-05,2]
[423295156,1780039839000,-500.0,8.218e-05,2]
[423295158,1780039839000,-500.0,8.218e-05,2]
[423295160,1780039839000,-500.0,8.218e-05,2]
[423295178,1780039839000,-500.0,8.219e-05,2]
[423295163,1780039839000,-500.0,8.218e-05,2]
[423295172,1780039839000,-500.0,8.219e-05,2]
[423295171,1780039839000,-500.0,8.218e-05,2]
[423295174,1780039839000,-500.0,8.219e-05,2]
[423295165,1780039839000,-500.0,8.218e-05,2]
[423295176,1780039839000,-500.0,8.219e-05,2]
[423295167,1780039839000,-500.0,8.218e-05,2]
[423295154,1780039839000,-500.0,8.218e-05,2]
[423295161,1780039839000,-500.0,8.218e-05,2]
[423295148,1780039839000,-500.0,8.218e-05,2]
[423295103,1780039839000,-300.0,6.736e-05,2]
[423295138,1780039839000,-500.0,8.218e-05,2]
[423295180,1780039839000,-311.32914763,8.219e-05,2]
[423295101,1780039839000,-300.0,6.736e-05,2]
[423295105,1780039839000,-300.0,6.736e-05,2]
[423295109,1780039839000,-300.0,6.736e-05,2]
[423295097,1780039839000,-300.0,6.736e-05,2]
[423295095,1780039839000,-300.0,6.736e-05,2]
[423295099,1780039839000,-300.0,6.736e-05,2]
[423295111,1780039839000,-300.0,6.736e-05,2]
[423295114,1780039839000,-300.0,6.736e-05,2]
[423295150,1780039839000,-500.0,8.218e-05,2]
[423295115,1780039839000,-600.0,6.736e-05,2]
[423295120,1780039839000,-300.0,7.265e-05,2]
[423295126,1780039839000,-1233.46952919,7.6e-05,2]
[423295128,1780039839000,-5000.0,8e-05,2]
[423295122,1780039839000,-699.0,7.265e-05,2]
[423295118,1780039839000,-239.48662686,6.971e-05,2]
[423295130,1780039839000,-253.23157701,8.057e-05,2]
[423295132,1780039839000,-864.0,8.151e-05,2]
[423295136,1780039839000,-500.0,8.218e-05,2]
[423295133,1780039839000,-500.0,8.218e-05,2]
[423295124,1780039839000,-720.0,7.41e-05,2]
[423295186,1780039839000,-500.0,8.219e-05,2]
[423295226,1780039839000,-257.27361068,8.219e-05,2]
[423295182,1780039839000,-500.0,8.219e-05,2]
[423295245,1780039839000,-500.0,8.219e-05,2]
[423295241,1780039839000,-500.0,8.219e-05,2]
[423295247,1780039839000,-3216.435,8.219e-05,2]
[423295251,1780039839000,-25.12371434,8.219e-05,2]
[423295255,1780039839000,-500.0,8.219e-05,2]
[423295257,1780039839000,-500.0,8.219e-05,2]
[423295259,1780039839000,-500.0,8.219e-05,2]
[423295261,1780039839000,-500.0,8.219e-05,2]
[423295274,1780039839000,-702.65,8.219e-05,2]
[423295265,1780039839000,-500.0,8.219e-05,2]
[423295273,1780039839000,-500.0,8.219e-05,2]
[423295269,1780039839000,-500.0,8.219e-05,2]
[423295263,1780039839000,-500.0,8.219e-05,2]
[423295267,1780039839000,-500.0,8.219e-05,2]
[423295276,1780039839000,-500.0,8.219e-05,2]
[423295271,1780039839000,-500.0,8.219e-05,2]
[423295278,1780039839000,-510.08,8.219e-05,2]
[423295280,1780039839000,-99.79682623,8.219e-05,2]
[423295184,1780039839000,-276.63779778,8.219e-05,2]
[423295253,1780039839000,-474.87628566,8.219e-05,2]
[423295249,1780039839000,-500.0,8.219e-05,2]
[423295220,1780039839000,-299.8343603,8.219e-05,2]
[423295239,1780039839000,-557.64,8.219e-05,2]
[423295243,1780039839000,-500.0,8.219e-05,2]
[423295190,1780039839000,-500.0,8.219e-05,2]
[423295194,1780039839000,-294.52,8.219e-05,2]
[423295192,1780039839000,-151.0,8.219e-05,2]
[423295196,1780039839000,-499.59,8.219e-05,2]
[423295198,1780039839000,-500.0,8.219e-05,2]
[423295200,1780039839000,-525.58,8.219e-05,2]
[423295202,1780039839000,-500.0,8.219e-05,2]
[423295208,1780039839000,-20.2556397,8.219e-05,2]
[423295206,1780039839000,-274.48,8.219e-05,2]
[423295222,1780039839000,-500.0,8.219e-05,2]
[423295188,1780039839000,-297.42,8.219e-05,2]
[423295224,1780039839000,-329.55638932,8.219e-05,2]
[423295228,1780039839000,-500.0,8.219e-05,2]
[423295230,1780039839000,-592.12,8.219e-05,2]
[423295233,1780039839000,-307.0,8.219e-05,2]
[423295232,1780039839000,-500.0,8.219e-05,2]
[423295235,1780039839000,-500.0,8.219e-05,2]
[423295237,1780039839000,-500.0,8.219e-05,2]
[423295204,1780039839000,-500.0,8.219e-05,2]
[423295366,1780039841000,-500.0,8.219e-05,2]
[423295363,1780039841000,-379.72335834,8.219e-05,2]
[423295364,1780039841000,-20.47981543,8.219e-05,2]
[423295370,1780039841000,-500.0,8.219e-05,2]
[423295365,1780039841000,-730.18,8.219e-05,2]
[423295368,1780039841000,-500.0,8.219e-05,2]
[423295375,1780039841000,-218.71160627,8.219e-05,2]
[423295367,1780039841000,-500.0,8.219e-05,2]
[423295372,1780039841000,-500.0,8.219e-05,2]
[423295371,1780039841000,-500.0,8.219e-05,2]
[423295373,1780039841000,-162.70235496,8.219e-05,2]
[423295374,1780039841000,-337.29764504,8.219e-05,2]
[423295369,1780039841000,-500.0,8.219e-05,2]
[423295396,1780039844000,-500.0,8.219e-05,2]
[423295390,1780039844000,-584.95,8.219e-05,2]
[423295384,1780039844000,-1317.89139505,8.219e-05,2]
[423295387,1780039844000,-500.0,8.219e-05,2]
[423295389,1780039844000,-500.0,8.219e-05,2]
[423295388,1780039844000,-500.0,8.219e-05,2]
[423295392,1780039844000,-500.0,8.219e-05,2]
[423295386,1780039844000,-500.0,8.219e-05,2]
[423295385,1780039844000,-421.61699868,8.219e-05,2]
[423295393,1780039844000,-127.37135456,8.219e-05,2]
[423295399,1780039844000,-169.37088564,8.493e-05,2]
[423295398,1780039844000,-500.0,8.219e-05,2]
[423295397,1780039844000,-500.0,8.219e-05,2]
[423295391,1780039844000,-500.0,8.219e-05,2]
[423295394,1780039844000,-372.62864544,8.219e-05,2]
[423295395,1780039844000,-584.99234811,8.219e-05,2]
[423295410,1780039846000,-56.19090157,8.493e-05,2]
[423295409,1780039846000,-500.0,8.493e-05,2]
[423295407,1780039846000,-500.0,8.493e-05,2]
[423295408,1780039846000,-500.0,8.493e-05,2]
[423295406,1780039846000,-500.0,8.493e-05,2]
[423295405,1780039846000,-500.0,8.493e-05,2]
[423295404,1780039846000,-362.62780038,8.493e-05,2]
[423295402,1780039846000,-425.82890892,8.219e-05,2]
[423295403,1780039846000,-500.0,8.219e-05,2]
[423295413,1780039868000,151.0,6.5e-05,2]
[423295414,1780039889000,-1677.26517168,8.136e-05,2]
[423295419,1780039982000,829.7489768,0.00020238,120]
[423295422,1780040413000,429.0,0.00020238,120]
[423295423,1780040459000,-5000.0,8e-05,2]
[423295426,1780040460000,-375.75243502,8.011e-05,2]
[423295424,1780040460000,-243.09471918,8.006e-05,2]
[423295425,1780040460000,-4381.1528458,8.011e-05,2]
[423295429,1780040461000,-500.0,8.219e-05,2]
[423295427,1780040461000,-99.36207128,8.011e-05,2]
[423295428,1780040461000,-500.0,8.219e-05,2]
[423295430,1780040461000,-410.40031831,8.219e-05,2]
[423295432,1780040461000,-500.0,8.219e-05,2]
[423295434,1780040461000,-500.0,8.219e-05,2]
[423295433,1780040461000,-500.0,8.219e-05,2]
[423295431,1780040461000,-500.0,8.219e-05,2]
[423295437,1780040461000,-488.89606658,8.219e-05,2]
[423295435,1780040461000,-500.57868577,8.219e-05,2]
[423295436,1780040461000,-500.76285806,8.219e-05,2]
[423295438,1780040462000,-11.10393342,8.219e-05,2]
[423295439,1780040462000,-500.0,8.219e-05,2]
[423295441,1780040462000,-500.0,8.219e-05,2]
[423295440,1780040462000,-500.64163129,8.219e-05,2]
[423295443,1780040462000,-351.26090978,8.219e-05,2]
[423295445,1780040462000,-500.0,8.219e-05,2]
[423295444,1780040462000,-500.0,8.219e-05,2]
[423295442,1780040462000,-500.0,8.219e-05,2]
[423295451,1780040463000,-492.86852551,8.219e-05,2]
[423295449,1780040463000,-1876.63,8.219e-05,2]
[423295450,1780040463000,-500.0,8.219e-05,2]
[423295448,1780040463000,-551.06,8.219e-05,2]
[423295447,1780040463000,-1579.44147449,8.219e-05,2]
[423295446,1780040463000,-1636.99352551,8.219e-05,2]
[423295453,1780040464000,-500.0,8.219e-05,2]
[423295452,1780040464000,-7.13147449,8.219e-05,2]
[423295455,1780040464000,-500.0,8.219e-05,2]
[423295457,1780040464000,-500.0,8.219e-05,2]
[423295456,1780040464000,-215.2172115,8.219e-05,2]
[423295454,1780040464000,-500.0,8.219e-05,2]
[423295463,1780040465000,-333.84221558,8.219e-05,2]
[423295461,1780040465000,-500.0,8.219e-05,2]
[423295462,1780040465000,-500.0,8.219e-05,2]
[423295460,1780040465000,-443.80909843,8.219e-05,2]
[423295459,1780040465000,-500.0,8.219e-05,2]
[423295458,1780040465000,-500.0,8.219e-05,2]
[423295465,1780040466000,-500.0,8.219e-05,2]
[423295467,1780040466000,-500.0,8.219e-05,2]
[423295466,1780040466000,-500.0,8.219e-05,2]
[423295470,1780040466000,-500.0,8.219e-05,2]
[423295464,1780040466000,-166.15778442,8.219e-05,2]
[423295468,1780040466000,-583.68,8.219e-05,2]
[423295472,1780040466000,-500.0,8.219e-05,2]
[423295471,1780040466000,-500.0,8.219e-05,2]
[423295474,1780040466000,-250.16221558,8.219e-05,2]
[423295473,1780040466000,-500.0,8.219e-05,2]
[423295469,1780040466000,-500.0,8.219e-05,2]
[423295476,1780040467000,-699.75,8.219e-05,2]
[423295475,1780040467000,-50.361927,8.219e-05,2]
[423295477,1780040467000,-673.37,8.219e-05,2]
[423295478,1780040467000,-500.0,8.219e-05,2]
[423295480,1780040467000,-500.0,8.219e-05,2]
[423295481,1780040467000,-364.6,8.219e-05,2]
[423295482,1780040467000,-500.0,8.219e-05,2]
[423295483,1780040467000,-500.0,8.219e-05,2]
[423295484,1780040467000,-500.0,8.219e-05,2]
[423295485,1780040467000,-211.918073,8.219e-05,2]
[423295479,1780040467000,-500.0,8.219e-05,2]
[423295493,1780040468000,-300.0,8.381e-05,2]
[423295486,1780040468000,-288.081927,8.219e-05,2]
[423295487,1780040468000,-500.0,8.219e-05,2]
[423295489,1780040468000,-176.554851,8.228e-05,2]
[423295488,1780040468000,-500.0,8.219e-05,2]
[423295490,1780040468000,-300.0,8.381e-05,2]
[423295492,1780040468000,-300.0,8.381e-05,2]
[423295498,1780040468000,-300.0,8.381e-05,2]
[423295495,1780040468000,-300.0,8.381e-05,2]
[423295494,1780040468000,-300.0,8.381e-05,2]
[423295497,1780040468000,-300.0,8.381e-05,2]
[423295496,1780040468000,-300.0,8.381e-05,2]
[423295501,1780040468000,-235.363222,8.381e-05,2]
[423295499,1780040468000,-300.0,8.381e-05,2]
[423295500,1780040468000,-300.0,8.381e-05,2]
[423295491,1780040468000,-300.0,8.381e-05,2]
[423295502,1780040469000,-500.0,8.219e-05,2]
[423295503,1780040469000,-500.0,8.219e-05,2]
[423295505,1780040469000,-300.0,8.381e-05,2]
[423295507,1780040469000,-300.0,8.381e-05,2]
[423295506,1780040469000,-300.0,8.381e-05,2]
[423295508,1780040469000,-3035.363222,8.493e-05,2]
[423295504,1780040469000,-64.636778,8.381e-05,2]
[423295509,1780040470000,-1798.44,8.219e-05,2]
[423295510,1780040470000,-500.0,8.219e-05,2]
[423295514,1780040470000,-500.0,8.493e-05,2]
[423295513,1780040470000,-350.01153854,8.493e-05,2]
[423295512,1780040470000,-500.0,8.493e-05,2]
[423295511,1780040470000,-181.071778,8.493e-05,2]
[423295517,1780040471000,-170.47668346,8.493e-05,2]
[423295516,1780040471000,-500.0,8.493e-05,2]
[423295515,1780040471000,-500.0,8.493e-05,2]
[423295522,1780040472000,-500.0,8.493e-05,2]
[423295518,1780040472000,-336.16331654,8.493e-05,2]
[423295519,1780040472000,-500.0,8.493e-05,2]
[423295520,1780040472000,-501.22136069,8.493e-05,2]
[423295523,1780040472000,-500.0,8.493e-05,2]
[423295521,1780040472000,-193.30000096,8.493e-05,2]
[423295524,1780040472000,-174.1569,8.493e-05,2]
[423295529,1780040472000,-212.76331612,8.493e-05,2]
[423295527,1780040472000,-582.39510569,8.493e-05,2]
[423295526,1780040472000,-500.0,8.493e-05,2]
[423295528,1780040472000,-500.0,8.493e-05,2]
[423295525,1780040472000,-500.0,8.493e-05,2]
[423295530,1780040473000,-287.23668388,8.493e-05,2]
[423295531,1780040473000,-385.46,8.493e-05,2]
[423295534,1780040473000,-500.0,8.493e-05,2]
[423295533,1780040473000,-500.0,8.493e-05,2]
[423295532,1780040473000,-500.0,8.493e-05,2]
[423295535,1780040473000,-623.01428559,8.493e-05,2]
[423295537,1780040473000,-500.0,8.493e-05,2]
[423295536,1780040473000,-500.0,8.493e-05,2]
[423295538,1780040473000,-500.0,8.493e-05,2]
[423295539,1780040473000,-500.0,8.493e-05,2]
[423295540,1780040473000,-204.28903053,8.493e-05,2]
[423295541,1780040474000,-5000.0,8.408e-05,2]
[423295543,1780040475000,-500.0,8.493e-05,2]
[423295542,1780040475000,-295.71096947,8.493e-05,2]
[423295544,1780040475000,-500.0,8.493e-05,2]
[423295545,1780040475000,-699.75,8.493e-05,2]
[423295549,1780040475000,-500.0,8.493e-05,2]
[423295547,1780040475000,-500.0,8.493e-05,2]
[423295550,1780040475000,-563.66,8.493e-05,2]
[423295548,1780040475000,-414.33,8.493e-05,2]
[423295551,1780040475000,-353.17903053,8.493e-05,2]
[423295546,1780040475000,-673.37,8.493e-05,2]
[423295556,1780040476000,-500.0,8.493e-05,2]
[423295555,1780040476000,-500.0,8.493e-05,2]
[423295554,1780040476000,-500.0,8.493e-05,2]
[423295552,1780040476000,-146.82096947,8.493e-05,2]
[423295553,1780040476000,-500.0,8.493e-05,2]
[423295558,1780040477000,-1798.44,8.493e-05,2]
[423295560,1780040477000,-303.01903053,8.497e-05,2]
[423295559,1780040477000,-500.0,8.493e-05,2]
[423295557,1780040477000,-251.72,8.493e-05,2]
[423295564,1780040478000,-500.0,8.497e-05,2]
[423295561,1780040478000,-196.98096947,8.497e-05,2]
[423295563,1780040478000,-500.0,8.497e-05,2]
[423295562,1780040478000,-500.0,8.497e-05,2]
[423295565,1780040478000,-500.0,8.497e-05,2]
[423295570,1780040478000,-500.0,8.497e-05,2]
[423295567,1780040478000,-507.22657826,8.497e-05,2]
[423295569,1780040478000,-500.0,8.497e-05,2]
[423295568,1780040478000,-500.0,8.497e-05,2]
[423295571,1780040478000,-295.79245227,8.497e-05,2]
[423295566,1780040478000,-500.0,8.497e-05,2]
[423295572,1780040480000,-204.20754773,8.497e-05,2]
[423295575,1780040480000,-500.0,8.497e-05,2]
[423295574,1780040480000,-500.0,8.497e-05,2]
[423295573,1780040480000,-500.0,8.497e-05,2]
[423295576,1780040480000,-250.0,8.497e-05,2]
[423295578,1780040480000,-500.0,8.497e-05,2]
[423295577,1780040480000,-500.0,8.497e-05,2]
[423295579,1780040480000,-500.0,8.497e-05,2]
[423295580,1780040480000,-151.0,8.498e-05,2]
[423295582,1780040480000,-151.0,8.498e-05,2]
[423295584,1780040480000,-151.0,8.498e-05,2]
[423295583,1780040480000,-151.0,8.498e-05,2]
[423295585,1780040480000,-165.09896674,8.498e-05,2]
[423295586,1780040480000,-151.0,8.498e-05,2]
[423295589,1780040480000,-151.0,8.498e-05,2]
[423295587,1780040480000,-151.0,8.498e-05,2]
[423295588,1780040480000,-151.0,8.498e-05,2]
[423295590,1780040480000,-21.69348553,8.498e-05,2]
[423295581,1780040480000,-151.0,8.498e-05,2]
[423295596,1780040487000,-151.0,8.498e-05,2]
[423295593,1780040487000,-151.0,8.498e-05,2]
[423295591,1780040487000,-129.30651447,8.498e-05,2]
[423295592,1780040487000,-151.0,8.498e-05,2]
[423295594,1780040487000,-151.0,8.498e-05,2]
[423295597,1780040487000,-151.0,8.498e-05,2]
[423295604,1780040487000,-1776.90838474,8.5e-05,7]
[423295598,1780040487000,-151.0,8.498e-05,2]
[423295603,1780040487000,-150.8441793,8.498e-05,2]
[423295602,1780040487000,-160.94092149,8.498e-05,2]
[423295595,1780040487000,-151.0,8.498e-05,2]
[423295599,1780040487000,-151.0,8.498e-05,2]
[423295600,1780040487000,-151.0,8.498e-05,2]
[423295601,1780040487000,-151.0,8.498e-05,2]
[423295605,1780040611000,829.7489768,0.00020235,120]
[423295612,1780040614000,-465.0,8.219e-05,2]
[423295611,1780040614000,-500.0,8.219e-05,2]
[423295609,1780040614000,-500.0,8.219e-05,2]
[423295610,1780040614000,-500.0,8.219e-05,2]
[423295608,1780040614000,-500.0,8.219e-05,2]
[423295606,1780040614000,-5000.0,8.137e-05,2]
[423295607,1780040614000,-500.0,8.219e-05,2]
[423295651,1780041033000,-500.0,8.219e-05,2]
[423295653,1780041033000,-500.0,8.219e-05,2]
[423295652,1780041033000,-500.0,8.219e-05,2]
[423295654,1780041033000,-563.5,8.219e-05,2]
[423295656,1780041033000,-500.0,8.219e-05,2]
[423295655,1780041033000,-378.32,8.219e-05,2]
[423295659,1780041033000,-427.93,8.219e-05,2]
[423295657,1780041033000,-500.0,8.219e-05,2]
[423295650,1780041033000,-500.0,8.219e-05,2]
[423295661,1780041033000,-500.0,8.219e-05,2]
[423295658,1780041033000,-215.49,8.219e-05,2]
[423295649,1780041033000,-641.44,8.219e-05,2]
[423295644,1780041033000,-500.0,8.219e-05,2]
[423295645,1780041033000,-500.0,8.219e-05,2]
[423295648,1780041033000,-500.0,8.219e-05,2]
[423295647,1780041033000,-500.83383589,8.219e-05,2]
[423295641,1780041033000,-500.0,8.219e-05,2]
[423295643,1780041033000,-500.0,8.219e-05,2]
[423295660,1780041033000,-623.8,8.219e-05,2]
[423295640,1780041033000,-362.62780038,8.219e-05,2]
[423295636,1780041033000,-238.2328248,8.178e-05,2]
[423295638,1780041033000,-500.0,8.219e-05,2]
[423295639,1780041033000,-425.82890892,8.219e-05,2]
[423295637,1780041033000,-164.86,8.219e-05,2]
[423295635,1780041033000,-5000.0,8e-05,2]
[423295646,1780041033000,-500.0,8.219e-05,2]
[423295662,1780041033000,-179.58899194,8.386e-05,2]
[423295642,1780041033000,-3216.435,8.219e-05,2]
[423295670,1780041033000,-500.0,8.492e-05,2]
[423295663,1780041033000,-153.23128291,8.491e-05,2]
[423295691,1780041033000,-365.96468677,8.492e-05,2]
[423295690,1780041033000,-500.0,8.492e-05,2]
[423295685,1780041033000,-493.66634876,8.492e-05,2]
[423295688,1780041033000,-36.95521609,8.492e-05,2]
[423295687,1780041033000,-500.0,8.492e-05,2]
[423295686,1780041033000,-500.0,8.492e-05,2]
[423295683,1780041033000,-500.0,8.492e-05,2]
[423295681,1780041033000,-449.25717236,8.492e-05,2]
[423295684,1780041033000,-500.0,8.492e-05,2]
[423295682,1780041033000,-50.74282764,8.492e-05,2]
[423295679,1780041033000,-185.48565587,8.492e-05,2]
[423295680,1780041033000,-314.51434413,8.492e-05,2]
[423295689,1780041033000,-463.04478391,8.492e-05,2]
[423295678,1780041033000,-220.82018966,8.492e-05,2]
[423295666,1780041033000,-375.06191337,8.491e-05,2]
[423295669,1780041033000,-514.15872267,8.492e-05,2]
[423295664,1780041033000,-500.0,8.491e-05,2]
[423295665,1780041033000,-500.0,8.491e-05,2]
[423295676,1780041033000,-500.0,8.492e-05,2]
[423295671,1780041033000,-288.60788806,8.492e-05,2]
[423295667,1780041033000,-508.2832579,8.492e-05,2]
[423295672,1780041033000,-464.47889005,8.492e-05,2]
[423295675,1780041033000,-500.0,8.492e-05,2]
[423295673,1780041033000,-500.0,8.492e-05,2]
[423295674,1780041033000,-500.0,8.492e-05,2]
[423295677,1780041033000,-279.17981034,8.492e-05,2]
[423295668,1780041033000,-500.0,8.492e-05,2]
[423295819,1780041039000,-500.0,8.492e-05,2]
[423295815,1780041039000,-500.0,8.492e-05,2]
[423295821,1780041039000,-500.0,8.492e-05,2]
[423295817,1780041039000,-500.0,8.492e-05,2]
[423295839,1780041039000,-500.0,8.493e-05,2]
[423295827,1780041039000,-500.0,8.493e-05,2]
[423295825,1780041039000,-156.07551826,8.492e-05,2]
[423295829,1780041039000,-500.0,8.493e-05,2]
[423295831,1780041039000,-500.0,8.493e-05,2]
[423295823,1780041039000,-500.0,8.492e-05,2]
[423295814,1780041039000,-500.0,8.492e-05,2]
[423295800,1780041039000,-455.46566673,8.492e-05,2]
[423295810,1780041039000,-500.0,8.492e-05,2]
[423295808,1780041039000,-500.0,8.492e-05,2]
[423295802,1780041039000,-500.0,8.492e-05,2]
[423295806,1780041039000,-500.0,8.492e-05,2]
[423295804,1780041039000,-500.0,8.492e-05,2]
[423295798,1780041039000,-44.53433327,8.492e-05,2]
[423295796,1780041039000,-570.88510212,8.492e-05,2]
[423295794,1780041039000,-205.57291661,8.492e-05,2]
[423295768,1780041039000,-294.42708339,8.492e-05,2]
[423295764,1780041039000,-152.0,8.385e-05,2]
[423295766,1780041039000,-134.03531323,8.492e-05,2]
[423295835,1780041039000,-500.0,8.493e-05,2]
[423295812,1780041039000,-500.0,8.492e-05,2]
[423295841,1780041039000,-500.0,8.493e-05,2]
[423295868,1780041039000,-500.0,8.545e-05,2]
[423295846,1780041039000,-500.0,8.493e-05,2]
[423295885,1780041039000,-500.0,8.545e-05,2]
[423295887,1780041039000,-500.0,8.545e-05,2]
[423295883,1780041039000,-500.0,8.545e-05,2]
[423295893,1780041039000,-293.43282509,8.545e-05,2]
[423295881,1780041039000,-500.0,8.545e-05,2]
[423295889,1780041039000,-500.0,8.545e-05,2]
[423295891,1780041039000,-500.0,8.545e-05,2]
[423295879,1780041039000,-500.0,8.545e-05,2]
[423295877,1780041039000,-264.59391016,8.545e-05,2]
[423295875,1780041039000,-500.0,8.545e-05,2]
[423295844,1780041039000,-641.44,8.493e-05,2]
[423295871,1780041039000,-500.0,8.545e-05,2]
[423295873,1780041039000,-500.0,8.545e-05,2]
[423295861,1780041039000,-152.0,8.525e-05,7]
[423295865,1780041039000,-152.0,8.543e-05,7]
[423295859,1780041039000,-204.25896212,8.5e-05,7]
[423295856,1780041039000,-500.0,8.493e-05,2]
[423295854,1780041039000,-500.0,8.493e-05,2]
[423295852,1780041039000,-523.19,8.493e-05,2]
[423295850,1780041039000,-500.0,8.493e-05,2]
[423295848,1780041039000,-500.0,8.493e-05,2]
[423295837,1780041039000,-500.0,8.493e-05,2]
[423295842,1780041039000,-500.0,8.493e-05,2]
[423295833,1780041039000,-3216.435,8.493e-05,2]
[423295864,1780041039000,-152.0,8.525e-05,7]
[423296393,1780041044000,-264.51856749,8.493e-05,2]
[423296390,1780041044000,-500.0,8.219e-05,2]
[423296391,1780041044000,-235.48143251,8.493e-05,2]
[423296394,1780041044000,-206.56717491,8.545e-05,2]
[423296400,1780041044000,-185.18904873,8.545e-05,2]
[423296397,1780041044000,-500.0,8.545e-05,2]
[423296401,1780041044000,-474.58595037,8.545e-05,2]
[423296396,1780041044000,-500.0,8.545e-05,2]
[423296399,1780041044000,-314.81095127,8.545e-05,2]
[423296398,1780041044000,-400.0,8.545e-05,2]
[423296415,1780041047000,-500.0,8.545e-05,2]
[423296412,1780041047000,-434.49,8.545e-05,2]
[423296406,1780041047000,-25.41404963,8.545e-05,2]
[423296407,1780041047000,-500.0,8.545e-05,2]
[423296409,1780041047000,-500.0,8.545e-05,2]
[423296408,1780041047000,-500.0,8.545e-05,2]
[423296411,1780041047000,-500.0,8.545e-05,2]
[423296405,1780041047000,-500.0,8.493e-05,2]
[423296416,1780041047000,-500.0,8.545e-05,2]
[423296410,1780041047000,-500.0,8.545e-05,2]
[423296413,1780041047000,-500.0,8.545e-05,2]
[423296404,1780041047000,-500.0,8.219e-05,2]
[423296414,1780041047000,-617.26,8.545e-05,2]
[423296418,1780041047000,-459.15974957,8.545e-05,2]
[423296417,1780041047000,-500.0,8.545e-05,2]
[423296423,1780041181000,829.7489768,0.00020234,120]
[423296425,1780041211000,-388.4439526,8.077e-05,2]
[423296424,1780041211000,-611.5560474,7.916e-05,2]
[423296427,1780041289000,-1000.0,8e-05,2]
[423296432,1780041304000,-130.0,8e-05,2]
[423296430,1780041304000,-300.0,7.999e-05,2]
[423296431,1780041304000,-270.0,7.999e-05,2]
[423296429,1780041304000,-300.0,7.999e-05,2]